Cogmind - Beta 12 @@@ ROGUE MODE // 2023.11.25 @ 12:16:32 Player: Mozco Result: Destroyed by C-57 Dissector with Dual-blade Saw Performance ------------- Evolutions (9) 4500 Regions Visited (21) 4200 Robots Destroyed (251) 1255 Value Destroyed (9486) 9486 Prototype IDs (30) 600 Alien Tech Used (0) 0 Bonus (3178) 3178 TOTAL SCORE: 23219 Bonus ------- High Alert Combat Kills 804 Follower Combat Kills 1334 Network Hubs Disabled 200 Aligned with FarCom 300 Built Enhanced Grunts 300 Met R17 at Cetus 500 Friendly Fire -260 Cogmind --------- Core Integrity 0/1600 Matter 300/300 Energy 100/100 System Corruption 34% Temperature Cool (0) Movement Core (50) Location -1/Access Parts ------- > --- POWER (2) -------- (None) > --- PROPULSION (9) --- (None) > --- UTILITY (12) ----- (None) > --- WEAPON (2) ------- (None) > --- INVENTORY (5) ---- Advanced Trap Scanner Peak State ------------ > --- POWER ------------ Light Antimatter Reactor Light Quantum Reactor > --- PROPULSION ------- Antigrav System Improved Antigrav System Improved Gyrokinetic Inverter Improved Gyrokinetic Inverter Improved Gyrokinetic Inverter Improved Gyrokinetic Inverter Cooled Antigrav System Combat Linear Gravjet > --- UTILITY ---------- Advanced Heat Sink Advanced Heat Sink Medium Storage Unit Advanced Trap Scanner Spectral Analyzer Advanced Targeting Computer Quantum Capacitor Advanced Reaction Control System Centrium Medium Armor Plating Centrium Medium Armor Plating > --- WEAPON ----------- Enhanced Nova Cannon Fusion Bomb Launcher > --- INVENTORY -------- Micro Antimatter Reactor Improved Antigrav System Advanced Surge Thruster Superbattery Compact HERF Cannon Compact HERF Cannon Enhanced Nova Cannon Guided EMP Blaster Great Maul [Rating: 168] Favorites ----------- Power Fission Core Engine Improved Deuterium Engine Power Core Fission Core Reactor Light Antimatter Reactor Propulsion Cooled Aerolev Unit Leg Improved Aluminum Leg Wheel Wheel Hover Unit Cooled Aerolev Unit Utility Medium Storage Unit Device Advanced Heat Sink Storage Medium Storage Unit Processor Advanced Targeting Computer Hackware Hacking Suite Protection Centrium Medium Armor Plating Weapon Advanced Beam Cannon Energy Gun Spread Laser Energy Cannon Advanced Beam Cannon Ballistic Gun Heavy Assault Rifle Ballistic Cannon Hardcell Cannon Launcher Mini Grenade Launcher Impact Weapon Great Maul Piercing Weapon Plasma Lance Build | -11 -10 -10 -9 -9 -9 -8 -8 -8 -7 -7 -7 -6 -5 -5 -5 -5 -5 -4 -3 -2 -1 ------- Run | Jun Mat Min Mat Min Exi Min Mat Sto Fac Was Fac Fac Fac Ext Cet Arc Hub Fac Res Res Acc Slots Evolved 18 | . . . 2 . . . 2 . 2 . . 2 2 . . . . 2 2 2 2 Power 1 | . . . . . . . . . . . . 1 . . . . . . . . . Propulsion 7 | . . . 1 . . . 1 . 1 . . . 1 . . . . 1 . 1 1 Utility 10 | . . . 1 . . . 1 . 1 . . 1 1 . . . . 1 2 1 1 Weapon . | . . . . . . . . . . . . . . . . . . . . . . Parts Attached 381 | 7 11 3 47 1 . 7 12 34 33 2 11 30 29 5 12 8 12 44 28 30 15 Power 42 | 1 1 . 4 . . . 2 3 2 . 3 5 3 1 2 . 2 3 2 3 5 Engine 12 | 1 1 . 4 . . . 1 . 2 . 3 . . . . . . . . . . Core 15 | . . . . . . . 1 3 . . . 5 2 1 1 . 2 . . . . Reactor 15 | . . . . . . . . . . . . . 1 . 1 . . 3 2 3 5 Propulsion 72 | 2 5 1 18 . . 4 1 9 4 . 1 3 7 . . . 3 4 5 5 . Treads . | . . . . . . . . . . . . . . . . . . . . . . Leg 3 | . . . 3 . . . . . . . . . . . . . . . . . . Wheel 2 | 2 . . . . . . . . . . . . . . . . . . . . . Hover 67 | . 5 1 15 . . 4 1 9 4 . 1 3 7 . . . 3 4 5 5 . Flight . | . . . . . . . . . . . . . . . . . . . . . . Utility 116 | 1 1 . 8 1 . 2 4 4 9 . 5 13 11 4 4 5 2 18 11 12 1 Device 60 | . . . . 1 . 1 1 1 2 . 1 9 5 1 . 5 2 14 9 7 1 Storage 7 | 1 . . 1 . . 1 . . . . . . 1 . . . . . 2 1 . Processor 16 | . 1 . . . . . 2 . 2 . 2 2 1 1 1 . . 1 . 3 . Hackware 3 | . . . 1 . . . 1 . . . 1 . . . . . . . . . . Protection 30 | . . . 6 . . . . 3 5 . 1 2 4 2 3 . . 3 . 1 . Artifact . | . . . . . . . . . . . . . . . . . . . . . . Weapon 151 | 3 4 2 17 . . 1 5 18 18 2 2 9 8 . 6 3 5 19 10 10 9 Energy Gun 10 | . 4 1 4 . . . . . . . . . . . 1 . . . . . . Energy Cannon 84 | . . . . . . . 3 11 11 2 2 7 8 . 4 3 4 10 6 6 7 Ballistic Gun 13 | 3 . 1 9 . . . . . . . . . . . . . . . . . . Ballistic Cannon 2 | . . . . . . . . . . . . . . . . . . 2 . . . Launcher 26 | . . . 3 . . 1 1 5 4 . . 1 . . 1 . 1 5 1 2 1 Special Weapon . | . . . . . . . . . . . . . . . . . . . . . . Impact Weapon 15 | . . . 1 . . . 1 2 3 . . 1 . . . . . 2 2 2 1 Slashing Weapon . | . . . . . . . . . . . . . . . . . . . . . . Piercing Weapon 1 | . . . . . . . . . . . . . . . . . . . 1 . . Special Melee Weapon . | . . . . . . . . . . . . . . . . . . . . . . Unidentified Prototypes 24 | . . . 1 . . 1 1 3 1 . 1 3 3 . 2 . 3 . 2 3 . Corrupted Parts 7 | . . . . . . . . 1 2 . . . . . . . . 1 . . 3 System Corruption 41 | . . . . . . . . 2 3 . . . . . . . . 2 . . 34 Parts Lost 60 | . 3 1 5 . . 4 . 4 1 1 . 1 . 2 1 1 . 1 2 14 19 Power 9 | . 1 . . . . . . . . . . . . 1 1 . . . . 3 3 Propulsion 25 | . 2 1 3 . . 4 . 4 1 . . 1 . . . . . . . 5 4 Utility 18 | . . . 1 . . . . . . . . . . 1 . . . 1 2 5 8 Weapon 8 | . . . 1 . . . . . . 1 . . . . . 1 . . . 1 4 Highest Loss Streak 13 | . 1 1 2 . . 4 . 2 1 1 . 1 . 1 1 1 . 1 1 6 13 To Critical Strikes 1 | . . . . . . . . . . . . . . . . . . . . 1 . Average Slot Usage (%) 95 | . 95 95 98 91 100 94 98 95 96 88 99 89 95 99 98 99 99 97 94 92 38 Engine 3 | . 13 14 10 11 11 11 2 . 5 7 7 3 . . . . . . . . . Core 3 | . . . . . . . 6 9 1 . . 7 10 4 9 11 11 5 1 . . Reactor 1 | . . . . . . . . . . . . . . 5 . . . 4 7 7 2 Leg 1 | . . . 9 . . . . . . . . . . . . . . . . . . Hover 31 | . 27 26 22 33 33 28 35 32 36 38 38 25 31 35 35 35 35 35 32 32 9 Device 9 | . . . . 2 11 11 . . 5 7 9 14 11 12 17 17 17 14 22 19 4 Storage 7 | . 14 14 11 11 11 11 9 9 7 7 7 6 5 5 5 5 5 5 4 4 5 Processor 12 | . 13 14 11 11 11 11 18 18 15 15 16 13 11 11 11 11 11 14 9 9 12 Protection 5 | . . . 9 . . . . 7 7 1 1 3 10 9 5 5 5 5 4 7 . Energy Gun 2 | . 13 24 6 . . . . . . . . . . . . . . . . . . Energy Cannon 7 | . . . . . . . 16 15 11 9 15 12 10 11 8 10 10 7 3 5 3 Ballistic Gun 2 | . 10 . 11 11 11 11 . . . . . . . . . . . . . . . Naked Turns 18 | . . . . . . . . . . . . . . . . . . . . . 18 Heaviest Build 91 | 14 15 14 28 19 19 19 26 32 41 39 39 53 56 52 54 57 58 66 72 91 64 Greatest Support 104 | 20 20 14 39 21 21 24 32 32 44 44 45 50 62 56 56 56 56 71 82 104 57 Greatest Overweight (x) 21 | . 1 1 1 . . . . 1 1 . . 1 1 . . 1 1 1 . 1 21 Average Overweight (x) . | . . . . . . . . . . . . . . . . . . . . . 1 Largest Inventory Capacity 10 | 8 8 8 10 10 10 10 10 10 10 10 10 10 10 10 10 10 10 10 10 10 10 Average Capacity 9 | 6 8 8 9 10 10 10 10 10 10 10 10 10 10 10 10 10 10 10 10 10 8 Most Carried 10 | 6 8 8 10 9 10 10 10 10 10 10 10 10 10 10 10 10 10 10 10 10 10 Average Carried 9 | 3 7 7 9 9 9 7 9 9 9 9 9 9 9 10 9 9 9 9 9 8 4 Final Capacity 10 | 8 8 8 10 10 10 10 10 10 10 10 10 10 10 10 10 10 10 10 10 10 5 Final Carried 10 | 6 8 7 9 9 10 6 10 10 10 10 10 10 10 10 10 10 10 10 10 10 1 Class Distribution -------------------- 53% | Mutant 11% | Scavenger-Scout 10% | Sprinter 6% | Commander-Sprinter 5% | Scavenger-Sprinter 4% | Scavenger-Mutant 4% | Scout Dominant Class ---------------- Mutant | -10/Materials Mutant | -10/Mines Mutant | -9/Materials Mutant | -9/Mines Mutant | -9/Exiles Scout | -8/Mines Mutant | -8/Materials Mutant | -8/Storage Mutant | -7/Factory Mutant | -7/Waste Mutant | -7/Factory Mutant | -6/Factory Sprinter | -5/Factory Sprinter | -5/Extension Commander-Sprinter | -5/Cetus Commander-Sprinter | -5/Archives Scavenger-Sprinter | -5/Hub_04(d) Scavenger-Sprinter | -4/Factory Scout | -3/Research Scavenger-Scout | -2/Research Machinist-Mutant | -1/Access Resources | -11 -10 -10 -9 -9 -9 -8 -8 -8 -7 -7 -7 -6 -5 -5 -5 -5 -5 -4 -3 -2 -1 ----------- Run | Jun Mat Min Mat Min Exi Min Mat Sto Fac Was Fac Fac Fac Ext Cet Arc Hub Fac Res Res Acc Matter Collected 5396 | 114 389 25 926 30 . 50 244 460 485 . 200 255 360 30 212 80 90 594 255 346 251 Remotely . | . . . . . . . . . . . . . . . . . . . . . . Salvage Created 10891 | . 508 91 1256 26 . 50 288 1241 1488 . 116 783 646 856 481 453 176 940 374 710 408 Parts 551 | . 29 4 106 5 . . 22 67 53 . 15 29 33 24 26 15 5 44 15 44 15 Haulers Intercepted 17 | . 2 . 5 . . . 3 3 1 . 1 . 1 . . . 1 . . . . Recyclers Shooed 12 | . 1 . 1 . . . . 1 1 . . 2 . 2 . . . 1 3 . . Parts Field Recycled . | . . . . . . . . . . . . . . . . . . . . . . Retrieved Matter . | . . . . . . . . . . . . . . . . . . . . . . Parts Self-Destructed . | . . . . . . . . . . . . . . . . . . . . . . Prevented . | . . . . . . . . . . . . . . . . . . . . . . Kills | -11 -10 -10 -9 -9 -9 -8 -8 -8 -7 -7 -7 -6 -5 -5 -5 -5 -5 -4 -3 -2 -1 ------- Run | Jun Mat Min Mat Min Exi Min Mat Sto Fac Was Fac Fac Fac Ext Cet Arc Hub Fac Res Res Acc Combat Hostiles Destroyed 165 | . 11 2 34 . . 3 6 18 23 . . 10 7 11 6 1 . 11 4 11 7 Guns 32 | . 9 2 20 . . 1 . . . . . . . . . . . . . . . Cannons 65 | . . . . . . . 2 11 11 . . 10 5 9 2 1 . 3 3 5 3 AOE 44 | . 2 . 14 . . 2 4 7 9 . . . . . . . . 1 . 4 1 Classes Destroyed 16 | . 6 . 4 . . . . 1 2 . . 2 . . . . . . . 1 . Worker 16 | . 2 . 3 1 . . 1 2 3 . . . 1 . . . 1 . . 2 . Builder 8 | . . . . . . . . 1 . . . . . . . . 1 5 . 1 . Tunneler 2 | . . . 1 1 . . . . . . . . . . . . . . . . . Hauler 17 | . 2 . 5 . . . 3 3 1 . 1 . 1 . . . 1 . . . . Recycler 7 | . . . 1 . . . . 1 1 . . 1 . 1 . . . . 1 1 . Mechanic 2 | . 1 . . . . . . . . . . . 1 . . . . . . . . Operator 22 | . 2 . 3 . . . 1 1 1 . 2 . . . . 9 1 1 . 1 . Watcher 12 | . 1 . 3 . . . . 1 2 . 1 1 2 . 1 . . . . . . Swarmer 33 | . . . 18 . . . 4 . 7 . . . 1 . . . . . . . 3 Cutter 5 | . . . . . . . . . . . . . . . . . . . . 4 1 Grunt 65 | . 11 2 9 . . 3 2 10 12 . . 4 . 7 . . . 2 . 1 2 Brawler 2 | . . . . . . . . . 1 . . 1 . . . . . . . . . Duelist 3 | . . . . . . . . . . . . 1 1 . . . . . . . 1 Sentry 27 | . . . 7 . . . . 8 2 . . 2 1 3 . 1 . 1 1 1 . Hunter 13 | . . . . . . . . . . . . 2 . 1 . . . 6 . 4 . Programmer 11 | . . . . . . . . . 1 . . . 4 . . . . 2 3 1 . Cetus Guard 6 | . . . . . . . . . . . . . . . 6 . . . . . . Best Kill Streak 9 | . 7 1 8 2 . 3 5 5 7 . 1 4 5 3 4 5 2 4 4 9 6 Combat Bots Only 7 | . 4 1 7 . . 3 4 5 5 . . 2 3 3 4 1 . 2 3 5 6 Max Kills in Single Turn 5 | . 5 1 4 1 . 2 2 2 2 . 1 1 2 1 1 1 2 2 1 5 1 Gunslinging . | . . . . . . . . . . . . . . . . . . . . . . Exploded 3 | . 2 . 3 . . 2 2 2 2 . . . . . . . . 1 . 3 1 Melee . | . . . . . . . . . . . . . . . . . . . . . . Uniques/NPCs Destroyed . | . . . . . . . . . . . . . . . . . . . . . . Combat | -11 -10 -10 -9 -9 -9 -8 -8 -8 -7 -7 -7 -6 -5 -5 -5 -5 -5 -4 -3 -2 -1 -------- Run | Jun Mat Min Mat Min Exi Min Mat Sto Fac Was Fac Fac Fac Ext Cet Arc Hub Fac Res Res Acc Damage Taken 12801 | . 542 141 890 . . 212 116 638 1098 52 29 478 492 542 327 206 303 531 554 2321 3329 Core 3011 | . 131 51 147 . . 38 15 62 185 52 18 44 65 53 24 77 21 23 89 314 1602 Absorbed by Shields 19 | . . . . . . . . . . . . . . 19 . . . . . . . Redirected to Shielding 168 | . . . 14 . . . . . . . . 5 53 96 . . . . . . . Regen/Repaired (Parts) 443 | . . . 22 . . . . 61 13 . . 99 118 . . . . 130 . . . Core Remaining (%) 76 | 100 . 27 . . . 53 . 86 . . 63 94 . . . . 76 98 93 78 . Volleys Fired 664 | . 53 15 126 . . 11 21 45 73 . 6 34 33 46 21 38 15 43 26 38 20 Largest 2 | . 2 1 2 . . 1 2 2 2 . 2 2 2 2 2 2 2 2 1 1 1 Hottest 338 | . 130 65 130 . . 30 136 136 136 . 148 160 196 196 338 196 186 186 94 120 120 Shots Fired 1032 | . 100 15 191 . . 11 39 75 126 . 14 67 65 80 35 46 27 56 27 38 20 Gun 305 | . 100 15 183 . . 5 . . . . . . . . 2 . . . . . . Cannon 641 | . . . . . . . 36 62 105 . 14 67 65 80 26 46 27 42 23 33 15 Launcher 86 | . . . 8 . . 6 3 13 21 . . . . . 7 . . 14 4 5 5 Special . | . . . . . . . . . . . . . . . . . . . . . . Kinetic 177 | . 46 . 119 . . 5 . . . . . . . . . . . 7 . . . Thermal 637 | . 54 15 64 . . . 36 62 105 . 14 67 37 80 28 11 14 7 17 20 6 Explosive 22 | . . . 8 . . 6 3 . . . . . . . . . . . . 5 . Electromagnetic 196 | . . . . . . . . 13 21 . . . 28 . 7 35 13 42 10 13 14 Robot Hit Streak 41 | . 11 5 9 . . 2 6 41 16 . 5 12 9 29 7 6 10 10 19 9 15 Robot Miss Streak 7 | . 7 3 6 . . 2 3 1 4 . 1 2 3 5 2 4 1 3 1 2 3 Penetration Max . | . . . . . . . . . . . . . . . . . . . . . . Secondary Targets 1 | . 1 . . . . . . . . . . . . . . . . . . . . Max Gunslinging Chain 1 | . 1 . . . . . . . . . . . . . . . . . . . . Capacitor 75 | . . . . . . . . . . . . . . . . . . 15 22 30 8 Shots Hit Robots 677 | . 67 9 111 2 . 4 19 50 86 . 9 49 42 66 17 31 20 30 22 29 14 Core Hits 431 | . 62 4 68 2 . 8 14 39 53 . 4 22 22 20 14 16 8 29 9 26 11 Critical Kills 13 | . 1 . 1 . . . . 1 3 . . 1 1 2 1 . . . . 1 1 Critical Parts Destroyed 2 | . . . 1 . . . . . . . . . . . . . . . . 1 . Critical Strikes 20 | . 1 . 4 . . . . 1 3 . . 1 1 2 1 . . . 2 2 2 Burn 2 | . . . 2 . . . . . . . . . . . . . . . . . . Meltdown 11 | . . . . . . . . 1 3 . . 1 1 2 1 . . . . 1 1 Destroy 3 | . 1 . 2 . . . . . . . . . . . . . . . . . . Corrupt 3 | . . . . . . . . . . . . . . . . . . . 2 . 1 Smash 1 | . . . . . . . . . . . . . . . . . . . . 1 . Melee Attacks 58 | . . . 1 2 . . 9 8 12 . . 1 . . . . . . 12 10 3 Impact 58 | . . . 1 2 . . 9 8 12 . . 1 . . . . . . 12 10 3 Slashing . | . . . . . . . . . . . . . . . . . . . . . . Piercing . | . . . . . . . . . . . . . . . . . . . . . . Sneak Attacks 4 | . . . . 2 . . . 1 . . . . . . . . . . 1 . . Combat Hostiles . | . . . . . . . . . . . . . . . . . . . . . . Follow-up Attacks . | . . . . . . . . . . . . . . . . . . . . . . Damage Inflicted 25021 | . 1362 140 3076 149 . 486 767 1886 2619 . 226 1285 1120 2196 1116 1346 740 1988 1085 2512 922 Guns 2939 | . 870 140 1860 . . 69 . . . . . . . . . . . . . . . Cannons 13983 | . . . . . . . 467 1072 1539 . 226 1285 1120 2196 556 1346 740 1065 803 1084 484 Explosions 7520 | . 492 . 1216 . . 417 300 767 1080 . . . . . 560 . . 923 81 1390 294 Melee 534 | . . . . 149 . . . 47 . . . . . . . . . . 201 38 99 Ramming 45 | . . . . . . . . . . . . . . . . . . . . . 45 Kinetic 1915 | . 288 . 1279 . . 69 . . . . . . . . . . . 279 . . . Thermal 12542 | . 1074 140 581 . . . 467 1188 1551 . 226 1285 730 2196 688 259 343 223 718 705 168 Explosive 3461 | . . . 1216 . . 417 300 138 . . . . . . . . . . . 1390 . Electromagnetic 6524 | . . . . . . . . 513 1068 . . . 390 . 428 1087 397 1486 166 379 610 Impact 534 | . . . . 149 . . . 47 . . . . . . . . . . 201 38 99 Slashing . | . . . . . . . . . . . . . . . . . . . . . . Piercing . | . . . . . . . . . . . . . . . . . . . . . . Highest Corruption 34 | . . . 2 2 2 2 . 2 4 9 9 . 1 1 1 1 . 2 4 4 34 Average Corruption 2 | . . . 1 2 2 2 . 2 3 7 6 . 1 1 1 1 . 2 2 3 18 Corruption Purged 6 | . . . . . . . . . . . 5 . . . . 1 . . . . . Corruption Blocked 15 | . . . . . . . . . . . . . . . . 1 5 9 . . . Effects 70 | . . . 9 . 2 3 . 1 10 2 14 . 2 3 3 1 . . 4 10 6 Message Errors 15 | . . . 1 . . 1 . . 3 1 2 . . 1 . 1 . . 1 2 2 Matter Fused 17 | . . . 2 . 1 1 . . 1 . 4 . 1 . 1 . . . 1 3 2 Heat Flow Errors 10 | . . . . . . 1 . 1 2 1 1 . . 1 . . . . . 3 . Energy Discharges 9 | . . . . . 1 . . . 2 . 1 . . 1 1 . . . 1 2 . Data Loss (minor) 9 | . . . 3 . . . . . 1 . 3 . 1 . . . . . . . 1 Data Loss (major) 4 | . . . 2 . . . . . . . . . . . 1 . . . . . 1 Misfires 5 | . . . 1 . . . . . 1 . 2 . . . . . . . 1 . . Alerts 1 | . . . . . . . . . . . 1 . . . . . . . . . . Overload Shots 2 | . . . . . . . . . . . . . . . 2 . . . . . . Overflow Damage 802 | . 84 . 44 . . 26 27 10 56 . 22 . 2 49 . 44 17 71 140 197 13 Projectiles 373 | . . . . . . . 6 . 49 . 22 . 2 49 . 44 17 71 14 88 11 Explosions 258 | . 84 . 44 . . 26 21 3 7 . . . . . . . . . . 71 2 Melee 171 | . . . . . . . . 7 . . . . . . . . . . 126 38 . Knockbacks 3 | . . . . . . . . . . . . . . . . . . 3 . . . Impact . | . . . . . . . . . . . . . . . . . . . . . . Kinetic 3 | . . . . . . . . . . . . . . . . . . 3 . . . Secondary . | . . . . . . . . . . . . . . . . . . . . . . Self-Inflicted Damage 373 | . 55 . 33 . . 48 . . 10 . . . . . . . . . . 208 19 Shots 8 | . 1 . 2 . . 1 . . 1 . . . . . . . . . . 3 . Rammed 12 | . . . . . . . . . . . . . . . . . . . . . 12 Targets Rammed 12 | . . . . . . . . . . . . . . . . . . . . . 12 Kicked . | . . . . . . . . . . . . . . . . . . . . . . Crushed . | . . . . . . . . . . . . . . . . . . . . . . Highest Temperature 446 | . 353 356 276 . . 198 354 289 192 168 219 343 316 293 347 165 249 364 280 446 253 Average Temperature 104 | . 100 153 104 . . 100 145 87 43 97 40 125 136 121 107 52 76 88 100 120 93 Received Heat Transfer 1622 | . 273 81 198 . . 81 36 288 207 . 12 93 36 107 9 27 . 21 . 117 36 Effects 25 | . 2 1 2 . . . 4 1 . . . 5 2 . . . . . . 8 . Shutdowns 2 | . . . . . . . . . . . . . . . . . . . . 2 . Energy Bleed 3 | . . . . . . . . 1 . . . 1 . . . . . . . 1 . Interference 15 | . 2 . 2 . . . 3 . . . . 3 2 . . . . . . 3 . Matter Decay 1 | . . . . . . . 1 . . . . . . . . . . . . . . Short Circuit 1 | . . 1 . . . . . . . . . . . . . . . . . . . Damage (minor) 1 | . . . . . . . . . . . . 1 . . . . . . . . . Damage (major) 2 | . . . . . . . . . . . . . . . . . . . . 2 . Siege Activations . | . . . . . . . . . . . . . . . . . . . . . . Robots Corrupted 18 | . . . . . . . . . 2 . . . 1 . 3 1 . 7 1 1 2 Combat Hostiles 16 | . . . . . . . . . 1 . . . 1 . 3 . . 7 1 1 2 Parts Fried 54 | . . . . . . . . 4 5 . . . 3 . 1 24 2 7 1 . 7 Impact Corruptions 5 | . . . . . . . . 1 . . . . . . . . . . 2 2 . Robots Melted 11 | . . . . . . . . 1 3 . . 1 1 2 1 . . . . 1 1 Combat Hostiles 8 | . . . . . . . . . 2 . . . 1 2 1 . . . . 1 1 Parts Melted 42 | . . . 2 . . . 1 6 7 . . 7 6 9 2 . . . . . 2 Heat Transferred 18634 | . 1190 311 1517 . . . 814 2013 2788 . 398 2500 1200 3300 950 400 350 200 . 555 148 Parts Sabotaged . | . . . . . . . . . . . . . . . . . . . . . . Parts Stolen . | . . . . . . . . . . . . . . . . . . . . . . Parts Stripped . | . . . . . . . . . . . . . . . . . . . . . . Power Chain Reactions 7 | . . . . . . . . 2 2 . . . . . 1 . . 2 . . . Missiles Intercepted . | . . . . . . . . . . . . . . . . . . . . . . Alert | -11 -10 -10 -9 -9 -9 -8 -8 -8 -7 -7 -7 -6 -5 -5 -5 -5 -5 -4 -3 -2 -1 ------- Run | Jun Mat Min Mat Min Exi Min Mat Sto Fac Was Fac Fac Fac Ext Cet Arc Hub Fac Res Res Acc Peak Influence 970 | . 307 159 970 386 . 80 301 569 709 298 267 253 167 429 697 610 604 635 350 506 479 Initial 370 | . . 119 61 370 . . 31 8 190 248 208 50 1 18 240 278 143 217 254 . 279 Average 290 | . 134 133 516 382 . 64 173 360 377 271 200 125 85 210 449 542 439 387 222 123 401 Maximum Alert Level 3 | . 1 . 3 1 . . 1 2 3 1 1 1 . 2 2 2 2 2 1 2 2 Low Security (%) 39 | 100 70 100 21 . . 100 54 21 13 . 28 83 100 39 . . 8 . 44 73 . Level 1 28 | . 29 . 14 100 . . 45 29 41 100 71 16 . 53 43 2 5 52 55 8 41 Level 2 27 | . . . 32 . . . . 49 43 . . . . 7 56 97 86 47 . 18 58 Level 3 4 | . . . 31 . . . . . 2 . . . . . . . . . . . . Level 4 . | . . . . . . . . . . . . . . . . . . . . . . Level 5 . | . . . . . . . . . . . . . . . . . . . . . . High Security . | . . . . . . . . . . . . . . . . . . . . . . Max Security . | . . . . . . . . . . . . . . . . . . . . . . Squads Dispatched 54 | . 3 . 4 . . . 1 2 8 . 3 2 3 5 . . 3 9 3 7 1 Investigation 18 | . 1 . . . . . . 1 1 . 1 2 . 3 . . 1 4 1 3 . Extermination 10 | . . . . . . . . . 2 . 1 . 1 . . . . 2 2 2 . Reinforcement 24 | . 2 . 4 . . . 1 1 5 . 1 . 1 2 . . 2 2 . 2 1 Assault 2 | . . . . . . . . . . . . . 1 . . . . 1 . . . Garrison . | . . . . . . . . . . . . . . . . . . . . . . Intercept . | . . . . . . . . . . . . . . . . . . . . . . Searches Triggered . | . . . . . . . . . . . . . . . . . . . . . . Construction Impeded 5 | . . . . . . . . . 3 . . . . 1 . . . 1 . . . Haulers Reinforced . | . . . . . . . . . . . . . . . . . . . . . . Active Scanning Responses . | . . . . . . . . . . . . . . . . . . . . . . Cargo Convoy Interrupts 1 | . . . . . . . . . . . . . 1 . . . . . . . . Stealth | -11 -10 -10 -9 -9 -9 -8 -8 -8 -7 -7 -7 -6 -5 -5 -5 -5 -5 -4 -3 -2 -1 --------- Run | Jun Mat Min Mat Min Exi Min Mat Sto Fac Was Fac Fac Fac Ext Cet Arc Hub Fac Res Res Acc Distress Signals 19 | . . . 3 . . . 1 . 2 . . 1 2 1 2 . . 5 1 1 . Communications Jammed . | . . . . . . . . . . . . . . . . . . . . . . Distress Signals . | . . . . . . . . . . . . . . . . . . . . . . Times Spotted 336 | . 21 2 54 . . 3 11 20 47 6 4 12 12 20 15 11 9 23 11 36 19 Peak Tracking Total 11 | . 4 2 6 . . 3 5 5 8 6 2 3 3 5 5 2 2 6 4 11 10 Tactical Retreats 22 | . . . 1 . . . . 2 4 . . . . 3 1 . 1 1 1 6 2 Traps | -11 -10 -10 -9 -9 -9 -8 -8 -8 -7 -7 -7 -6 -5 -5 -5 -5 -5 -4 -3 -2 -1 ------- Run | Jun Mat Min Mat Min Exi Min Mat Sto Fac Was Fac Fac Fac Ext Cet Arc Hub Fac Res Res Acc Traps Triggered 14 | . . . 3 . . . . . 2 . . 1 1 1 . . . 5 . 1 . Indirectly . | . . . . . . . . . . . . . . . . . . . . . . Trap Hack Attempts . | . . . . . . . . . . . . . . . . . . . . . . Triggered . | . . . . . . . . . . . . . . . . . . . . . . Disarmed 10 | . . . 6 . . . 4 . . . . . . . . . . . . . . Reprogrammed . | . . . . . . . . . . . . . . . . . . . . . . Reused . | . . . . . . . . . . . . . . . . . . . . . . Traps Extracted . | . . . . . . . . . . . . . . . . . . . . . . Installed . | . . . . . . . . . . . . . . . . . . . . . . Triggered 2 | . . . . . . . . . . . . . 2 . . . . . . . . Machines | -11 -10 -10 -9 -9 -9 -8 -8 -8 -7 -7 -7 -6 -5 -5 -5 -5 -5 -4 -3 -2 -1 ---------- Run | Jun Mat Min Mat Min Exi Min Mat Sto Fac Was Fac Fac Fac Ext Cet Arc Hub Fac Res Res Acc Machines Disabled 39 | . 4 . 6 . . 1 1 8 4 . . . 2 . 3 4 . 4 . 2 . Max in Single Turn 4 | . 4 . 2 . . 1 1 2 2 . . . 1 . 2 1 . 1 . 1 . Garrison Access 3 | . . . . . . . . 1 . . . 1 1 . . . . . . . . Network Hub 1 | . . . . . . . . . . . . . . . . . 1 . . . . Machines Repaired . | . . . . . . . . . . . . . . . . . . . . . . Machines Sabotaged . | . . . . . . . . . . . . . . . . . . . . . . Overloaded Fab Kills . | . . . . . . . . . . . . . . . . . . . . . . Hacking | -11 -10 -10 -9 -9 -9 -8 -8 -8 -7 -7 -7 -6 -5 -5 -5 -5 -5 -4 -3 -2 -1 --------- Run | Jun Mat Min Mat Min Exi Min Mat Sto Fac Was Fac Fac Fac Ext Cet Arc Hub Fac Res Res Acc Machines Accessed 104 | . 4 . 10 1 1 . 6 7 14 . 7 10 5 12 3 . 1 9 6 8 . Terminals 70 | . 4 . 7 1 . . 6 5 7 . 5 2 4 12 3 . 1 5 3 5 . Fabricators 10 | . . . . . . . . . 2 . . 3 . . . . . 3 2 . . Repair Stations 6 | . . . 1 . . . . 1 1 . . 1 1 . . . . 1 . . . Recycling Units 1 | . . . . . . . . . . . . 1 . . . . . . . . . Scanalyzers 10 | . . . 2 . . . . . 3 . 1 1 . . . . . . 1 2 . Garrison Access 6 | . . . . . . . . 1 1 . 1 2 . . . . . . . 1 . Total Hacks 295 | . 10 . 40 4 1 . 27 21 41 . 14 18 7 24 8 . 5 33 14 28 . Successful 145 | . 4 . 31 2 1 . 17 9 20 . 4 6 4 8 4 . 3 19 6 7 . Failed 149 | . 6 . 8 2 . . 10 12 21 . 10 12 3 16 4 . 2 14 8 21 . Catastrophic 34 | . 2 . . . . . 4 1 6 . 4 3 1 5 1 . . 3 . 4 . Database Lockouts 1 | . . . 1 . . . . . . . . . . . . . . . . . . Manual 57 | . 9 . 5 2 1 . 11 4 5 . 7 1 . . 2 . 2 1 . 7 . Terminals 199 | . 10 . 25 4 . . 27 13 15 . 11 4 5 24 8 . 5 22 7 19 . Fabricators 23 | . . . . . . . . . 5 . . 6 . . . . . 7 5 . . Repair Stations 17 | . . . 2 . . . . 5 2 . . 2 2 . . . . 4 . . . Recycling Units 1 | . . . . . . . . . . . . 1 . . . . . . . . . Scanalyzers 43 | . . . 13 . . . . . 18 . 2 1 . . . . . . 2 7 . Garrison Access 11 | . . . . . . . . 3 1 . 1 4 . . . . . . . 2 . Terminal Hacks 79 | . 4 . 16 2 1 . 15 4 4 . 2 . 2 8 4 . 1 9 1 6 . Record 11 | . . . . . 1 . . . . . . . . . 4 . . 3 . 3 . Part Schematic 7 | . . . . . . . 2 2 1 . . . 1 1 . . . . . . . Robot Analysis 6 | . 3 . 1 1 . . 1 . . . . . . . . . . . . . . Prototype ID Bank 3 | . . . 1 . . . 1 . . . . . . . . . . 1 . . . Open Door 8 | . . . . . . . . 1 . . . . 1 6 . . . . . . . Branch Access Points 4 | . . . 1 . . . 1 . 1 . . . . . . . . . . 1 . Emergency Access Points 5 | . . . 2 . . . 3 . . . . . . . . . . . . . . Terminal Index 3 | . . . 1 . . . 1 . . . . . . 1 . . . . . . . Alert Level 7 | . . . 1 . . . 1 1 . . 2 . . . . . . 2 . . . Unreport Threat 4 | . . . . . . . 2 . . . . . . . . . . . 1 1 . Locate Traps 4 | . . . 2 . . . . . 1 . . . . . . . . 1 . . . Disarm Traps 4 | . . . 3 . . . 1 . . . . . . . . . . . . . . Hauler Manifests 1 | . . . . . . . . . . . . . . . . . . 1 . . . Zone Layout 12 | . 1 . 4 1 . . 2 . 1 . . . . . . . 1 1 . 1 . Fabricator Hacks 13 | . . . . . . . . . 2 . . 2 . . . . . 6 3 . . Load Schematic 6 | . . . . . . . . . 1 . . 1 . . . . . 3 1 . . Build 7 | . . . . . . . . . 1 . . 1 . . . . . 3 2 . . Repair Station Hacks 14 | . . . 2 . . . . 3 2 . . 2 2 . . . . 3 . . . Scan Component 8 | . . . 1 . . . . 2 1 . . 1 1 . . . . 2 . . . Repair 6 | . . . 1 . . . . 1 1 . . 1 1 . . . . 1 . . . Recycling Unit Hacks . | . . . . . . . . . . . . . . . . . . . . . . Scanalyzer 29 | . . . 13 . . . . . 12 . 1 . . . . . . . 2 1 . Insert Component 16 | . . . 7 . . . . . 6 . 1 . . . . . . . 1 1 . Analyze 13 | . . . 6 . . . . . 6 . . . . . . . . . 1 . . Garrison Access Hacks 2 | . . . . . . . . 1 . . . 1 . . . . . . . . . Seal Access 2 | . . . . . . . . 1 . . . 1 . . . . . . . . . Unauthorized Hacks 8 | . . . . . . . 2 1 . . 1 1 . . . . 2 1 . . . Terminals 7 | . . . . . . . 2 1 . . 1 . . . . . 2 1 . . . Assimilate 2 | . . . . . . . . . . . 1 . . . . . 1 . . . . Botnet 4 | . . . . . . . 2 1 . . . . . . . . . 1 . . . Sabotage 1 | . . . . . . . . . . . . . . . . . 1 . . . . Fabricators . | . . . . . . . . . . . . . . . . . . . . . . Repair Stations . | . . . . . . . . . . . . . . . . . . . . . . Recycling Units 1 | . . . . . . . . . . . . 1 . . . . . . . . . Monitor 1 | . . . . . . . . . . . . 1 . . . . . . . . . Scanalyzers . | . . . . . . . . . . . . . . . . . . . . . . Garrison Access . | . . . . . . . . . . . . . . . . . . . . . . Data Cores Recovered 5 | . . . . . . . 1 . . . 1 . . . . . . 2 . 1 . Used 2 | . . . . . . . . . . . . . . . . . . 1 . 1 . Hacking Detections 93 | . 4 . 6 1 . . 6 7 14 . 7 8 3 10 3 . 1 9 6 8 . Full Trace Events 19 | . 1 . . . . . 1 2 1 . 1 2 . 3 . . . 4 1 3 . Feedback Events . | . . . . . . . . . . . . . . . . . . . . . . Feedback Blocked . | . . . . . . . . . . . . . . . . . . . . . . Robot Schematics Acquired . | . . . . . . . . . . . . . . . . . . . . . . Robots Built . | . . . . . . . . . . . . . . . . . . . . . . Authchips . | . . . . . . . . . . . . . . . . . . . . . . Time . | . . . . . . . . . . . . . . . . . . . . . . Total Robot Build Rating . | . . . . . . . . . . . . . . . . . . . . . . Part Schematics Acquired 17 | . . . 6 . . . 1 2 5 . . . 1 1 . . . . 1 . . Parts Built 12 | . . . . . . . . . 2 . . 1 . . . . . 6 3 . . Authchips . | . . . . . . . . . . . . . . . . . . . . . . Time 475 | . . . . . . . . . 95 . . 47 . . . . . 233 100 . . Total Part Build Rating 79 | . . . . . . . . . 10 . . 5 . . . . . 42 22 . . Parts Repaired 6 | . . . 1 . . . . 1 1 . . 1 1 . . . . 1 . . . Time 352 | . . . 26 . . . . 80 50 . . 40 44 . . . . 112 . . . Parts Recycled . | . . . . . . . . . . . . . . . . . . . . . . Recycled Matter . | . . . . . . . . . . . . . . . . . . . . . . Retrieved Matter . | . . . . . . . . . . . . . . . . . . . . . . Retrieved Components . | . . . . . . . . . . . . . . . . . . . . . . Parts Scanalyzed 14 | . . . 6 . . . . . 5 . 1 . . . . . . . 1 1 . Part Schematics Acquired 11 | . . . 6 . . . . . 4 . . . . . . . . . 1 . . Parts Damaged 1 | . . . 1 . . . . . . . . . . . . . . . . . . Bothacking | -11 -10 -10 -9 -9 -9 -8 -8 -8 -7 -7 -7 -6 -5 -5 -5 -5 -5 -4 -3 -2 -1 ------------ Run | Jun Mat Min Mat Min Exi Min Mat Sto Fac Was Fac Fac Fac Ext Cet Arc Hub Fac Res Res Acc Used RIF Installer . | . . . . . . . . . . . . . . . . . . . . . . Robots Hacked . | . . . . . . . . . . . . . . . . . . . . . . Non-combat . | . . . . . . . . . . . . . . . . . . . . . . Combat . | . . . . . . . . . . . . . . . . . . . . . . Robot Hacks Applied . | . . . . . . . . . . . . . . . . . . . . . . Relay Couplers Released 6 | . . . . . . . . . . . . . 6 . . . . . . . . Machine Destruction 3 | . . . . . . . . . . . . . 3 . . . . . . . . Programmers 3 | . . . . . . . . . . . . . 3 . . . . . . . . Fabnet Peak Effective % . | . . . . . . . . . . . . . . . . . . . . . . Robots Rewired 10 | . . . . . . . . . . . . . . 10 . . . . . . . Allies Hacked . | . . . . . . . . . . . . . . . . . . . . . . Hacks Repelled . | . . . . . . . . . . . . . . . . . . . . . . Allies | -11 -10 -10 -9 -9 -9 -8 -8 -8 -7 -7 -7 -6 -5 -5 -5 -5 -5 -4 -3 -2 -1 -------- Run | Jun Mat Min Mat Min Exi Min Mat Sto Fac Was Fac Fac Fac Ext Cet Arc Hub Fac Res Res Acc Total Allies 25 | . . . . . . . . . . . . . . 17 5 . . 3 . . . Largest Group 11 | . . . . . . . . . . . . . . 11 7 6 6 3 . . . Highest-Rated Group 536 | . . . . . . . . . . . . . . 471 536 495 491 185 . . . Highest-Rated Ally 159 | . . . . . . . . . . . . . . 159 159 96 96 96 . . . Total Orders 6 | . . . . . . . . . . . . . . . . . 6 . . . . STAY 3 | . . . . . . . . . . . . . . . . . 3 . . . . FOLLOW 3 | . . . . . . . . . . . . . . . . . 3 . . . . Ally Attacks 204 | . . . . . . . . . . . . . . 64 33 21 41 45 . . . Total Damage 5992 | . . . . . . . . . . . . . . 1426 911 768 1657 1230 . . . Kills 37 | . . . . . . . . . . . . . . 10 7 3 10 7 . . . Allies Corrupted 2 | . . . . . . . . . . . . . . . . . 1 1 . . . Allies Melted . | . . . . . . . . . . . . . . . . . . . . . . Intel | -11 -10 -10 -9 -9 -9 -8 -8 -8 -7 -7 -7 -6 -5 -5 -5 -5 -5 -4 -3 -2 -1 ------- Run | Jun Mat Min Mat Min Exi Min Mat Sto Fac Was Fac Fac Fac Ext Cet Arc Hub Fac Res Res Acc Robot Analysis Total 6 | . 3 . 1 1 . . 1 . . . . . . . . . . . . . . Derelict Logs Recovered 1 | . . 1 . . . . . . . . . . . . . . . . . . . Drone Launches . | . . . . . . . . . . . . . . . . . . . . . . Drone Recoveries . | . . . . . . . . . . . . . . . . . . . . . . Exploration | -11 -10 -10 -9 -9 -9 -8 -8 -8 -7 -7 -7 -6 -5 -5 -5 -5 -5 -4 -3 -2 -1 ------------- Run | Jun Mat Min Mat Min Exi Min Mat Sto Fac Was Fac Fac Fac Ext Cet Arc Hub Fac Res Res Acc Turns Passed 12690 | 47 725 232 1541 40 122 90 331 801 1370 45 560 866 870 677 276 479 597 871 845 1108 197 Spaces Moved 16077 | 41 732 283 1136 63 230 115 390 790 1857 101 990 1327 1096 802 401 439 804 1583 1652 1172 73 Core 20 | 5 . . . . . . . . . . . . . . . . . . . . 15 Treads . | . . . . . . . . . . . . . . . . . . . . . . Legs 275 | . . . 275 . . . . . . . . . . . . . . . . . . Wheels 40 | 36 4 . . . . . . . . . . . . . . . . . . . . Hover 15742 | . 728 283 861 63 230 115 390 790 1857 101 990 1327 1096 802 401 439 804 1583 1652 1172 58 Flight . | . . . . . . . . . . . . . . . . . . . . . . Fastest Speed 30 | 50 56 56 52 52 52 52 48 38 34 38 38 40 33 33 33 33 33 30 33 30 50 Average Speed 45 | 76 68 68 94 52 52 52 48 59 43 38 39 49 38 33 33 34 33 30 34 39 110 Slowest Speed 1100 | 80 120 120 190 52 52 52 52 112 98 38 40 104 92 33 33 81 81 85 38 92 1100 Overloaded Moves 29 | . . . . . . . . . . . . . . . . . . . . 29 . Propulsion Burnouts . | . . . . . . . . . . . . . . . . . . . . . . Robots Hopped . | . . . . . . . . . . . . . . . . . . . . . . Cave-ins Triggered . | . . . . . . . . . . . . . . . . . . . . . . Exploration Rate (%) 46 | 3 92 67 92 18 61 26 32 67 49 83 23 34 20 70 83 82 32 38 21 28 3 Regions Visited 21 Branch Regions 9 Pre-discovered Areas 1 | . . . . . 1 . . . . . . . . . . . . . . . . Known Exits Taken 3 | . . . 1 . . . 1 . . . . . . . . . 1 . . . . Unknown Exits Taken 16 | 1 1 1 . 1 1 1 . 1 . . 1 1 1 1 1 1 . 1 1 1 . Scrap Searched 2 | . . 1 . 1 . . . . . . . . . . . . . . . . . Spaces Dug 44 | . . . 1 . . . 7 . 12 . . 1 . . . . . . 4 19 . Terrain Destroyed 358 | . 34 . 81 . . 63 18 28 24 . . 1 3 13 29 . 4 6 5 48 1 Melee 31 | . . . 1 . . . 7 . 12 . . 1 . . . . . . 4 6 . Projectile 34 | . . . 3 . . . . . . . . . 3 13 5 . 4 2 1 2 1 AOE 293 | . 34 . 77 . . 63 11 28 12 . . . . . 24 . . 4 . 40 . Terrain Rammed . | . . . . . . . . . . . . . . . . . . . . . . Walls Destroyed . | . . . . . . . . . . . . . . . . . . . . . . Machines Disabled . | . . . . . . . . . . . . . . . . . . . . . . Actions | -11 -10 -10 -9 -9 -9 -8 -8 -8 -7 -7 -7 -6 -5 -5 -5 -5 -5 -4 -3 -2 -1 --------- Run | Jun Mat Min Mat Min Exi Min Mat Sto Fac Was Fac Fac Fac Ext Cet Arc Hub Fac Res Res Acc Total 20428 | 52 858 305 1414 65 232 132 478 1038 2286 106 1141 1482 1499 1158 524 737 1115 1947 1903 1795 161 Wait 2676 | . 33 3 52 . . . 26 108 255 3 127 56 292 214 70 243 269 219 154 514 38 Move 16057 | 40 731 282 1135 62 229 114 389 789 1857 100 989 1326 1095 801 400 438 803 1582 1651 1171 73 Hop . | . . . . . . . . . . . . . . . . . . . . . . Pick Up 185 | 5 16 1 19 . 2 . 10 23 22 1 2 8 13 . 8 3 5 23 10 14 . Fast Attach 132 | 6 3 1 10 1 . . 5 6 11 . 6 16 15 4 5 3 6 15 6 6 7 Attach 99 | . 3 2 7 . . 4 1 13 11 1 2 3 4 . 4 1 3 15 7 10 8 Detach 13 | . . . 4 . . . 2 2 1 . . . . . . . . 1 . 3 . Swap 150 | 1 5 . 30 . . 3 6 15 11 1 3 11 10 1 3 4 3 14 15 14 . Drop 278 | . 14 1 30 . 1 . 9 29 33 . 6 27 24 3 13 7 11 35 20 15 . Fire 664 | . 53 15 126 . . 11 21 45 73 . 6 34 33 46 21 38 15 43 26 38 20 Melee 58 | . . . 1 2 . . 9 8 12 . . 1 . . . . . . 12 10 3 Ram 12 | . . . . . . . . . . . . . . . . . . . . . 12 Kick . | . . . . . . . . . . . . . . . . . . . . . . Crush . | . . . . . . . . . . . . . . . . . . . . . . Escape Stasis 13 | . . . . . . . . . . . . . . 13 . . . . . . . Rewire 91 | . . . . . . . . . . . . . 13 76 . . . . 2 . . Trap . | . . . . . . . . . . . . . . . . . . . . . . Miscellaneous . | . . . . . . . . . . . . . . . . . . . . . . Route ------- -11/Junkyard -10/Materials (discovered 4 exits: *Mat x3 / [*Min]) -10/Mines -9/Materials (discovered 4 exits: *Mat x3 / *Min) -9/Mines (discovered 2 exits: *Mat / *Exi) -9/Exiles (discovered 2 exits: [*Min x2]) -8/Mines -8/Materials (discovered 2 exits: *Fac / *Sto) -8/Storage -7/Factory (discovered 3 exits: *Fac / Low x2) -7/Waste -7/Factory -6/Factory -5/Factory -5/Extension (discovered 2 exits: *Fac / *Cet) -5/Cetus (discovered 2 exits: *Fac / *Arc) -5/Archives (discovered 3 exits: *Fac / *Hub x2) -5/Hub_04(d) (discovered 2 exits: *Fac x2) -4/Factory -3/Research -2/Research (discovered 3 exits: [*Acc] / *Tes x2) -1/Access History --------- Turn | Location | Event 14 | -11/Junkyard | Discovered new exit (range 16) 48 | -11/Junkyard | Entered Materials 236 | -10/Materials | Discovered new exit (range 8) 310 | -10/Materials | Build established: Mutant 413 | -10/Materials | Discovered new exit (range 16) 545 | -10/Materials | Discovered new exit (range 16) 572 | -10/Materials | Core integrity fell below 50% 763 | -10/Materials | Discovered new exit (range 16) 773 | -10/Materials | Entered Mines 828 | -10/Mines | A weapon hastily lodged in a ceiling crevice suddenly fell to the ground 976 | -10/Mines | Learned Materials emergency access door positions 991 | -10/Mines | Discovered new exit (range 13) 1005 | -10/Mines | Entered Materials 1005 | -9/Materials | Evolved 2 slots: Propulsion x1, Utility x1 1203 | -9/Materials | Discovered new exit (range 18) 1284 | -9/Materials | Repaired Lgt. Armor Plating? 1601 | -9/Materials | Destroyed 7 combat bots 1673 | -9/Materials | Discovered new exit (range 17) 1843 | -9/Materials | Central database locked down 2045 | -9/Materials | Identified exit to Mines 2372 | -9/Materials | Discovered new exit (range 8) 2546 | -9/Materials | Entered Mines 2548 | -9/Mines | Discovered new exit (range 12) 2581 | -9/Mines | Discovered new exit (range 11) 2584 | -9/Mines | Deemed a non-threat by the Exiles lab entrance 2586 | -9/Mines | Entered Exiles 2593 | -9/Exiles | Discovered new exit (range 17) 2601 | -9/Exiles | Met 8R-AWN 2608 | -9/Exiles | Met EX-HEX 2624 | -9/Exiles | Met EX-BIN 2637 | -9/Exiles | Aligned with FarCom system 2638 | -9/Exiles | Given EX-Vault access code 2650 | -9/Exiles | Opened EX-Vault 2654 | -9/Exiles | Found Prototype Storage 2668 | -9/Exiles | Warned to stay clear of 0b10 Research branches 2683 | -9/Exiles | Met EX-DEC 2686 | -9/Exiles | Learned location of Zion (-6) 2700 | -9/Exiles | Discovered new exit (range 15) 2708 | -9/Exiles | Left Exiles lab with Superbattery 2708 | -9/Exiles | Entered Mines 2755 | -8/Mines | Identified Superbattery 2762 | -8/Mines | Lost 4 parts (4n) 2796 | -8/Mines | Discovered new exit (range 4) 2798 | -8/Mines | Entered Materials 2798 | -8/Materials | Evolved 2 slots: Propulsion x1, Utility x1 2868 | -8/Materials | Identified exit to Storage 3069 | -8/Materials | Discovered new exit (range 17) 3129 | -8/Materials | Entered Storage 3794 | -8/Storage | Discovered new exit (range 5) 3870 | -8/Storage | Repaired Gui. EMP Blaster 3930 | -8/Storage | Entered Factory 3930 | -7/Factory | Evolved 2 slots: Propulsion x1, Utility x1 4374 | -7/Factory | Repaired Broken Gui. EMP Blaster? 4482 | -7/Factory | Identified exit to Lower Caves 4643 | -7/Factory | Fabricated Imp. Gravmag System? 4803 | -7/Factory | Discovered new exit (range 17) 5300 | -7/Factory | Sucked down chute 5300 | -7/Factory | Entered Waste 5305 | -7/Waste | Spotted C-40 Crusher 5310 | -7/Waste | Spotted C-40 Crusher 5312 | -7/Waste | Crushed by Compactor (1 part destroyed, 1 dropped) 5315 | -7/Waste | EMP discharged 5317 | -7/Waste | Spotted C-40 Crusher 5322 | -7/Waste | Spotted C-40 Crusher 5326 | -7/Waste | Spotted C-40 Crusher 5329 | -7/Waste | Spotted C-40 Crusher 5340 | -7/Waste | Discovered new exit (range 14) 5345 | -7/Waste | Entered Factory 5825 | -7/Factory | Discovered new exit (range 12) 5905 | -7/Factory | Entered another Factory area 5905 | -6/Factory | Evolved 2 slots: Power x1, Utility x1 5959 | -6/Factory | Repaired Gui. EMP Blaster? 6212 | -6/Factory | Found Prototype Launcher 6212 | -6/Factory | Identified Rocket Array 6473 | -6/Factory | Fabricated Enh. Optical Array? 6757 | -6/Factory | Discovered new exit (range 11) 6771 | -6/Factory | Entered another Factory area 6771 | -5/Factory | Evolved 2 slots: Propulsion x1, Utility x1 6918 | -5/Factory | Repaired Plasma Cannon 7305 | -5/Factory | Build established: Sprinter 7382 | -5/Factory | Cargo convoy interrupted 7639 | -5/Factory | Discovered new exit (range 10) 7641 | -5/Factory | Entered Extension 7920 | -5/Extension | Rescued a captive Derelict 7931 | -5/Extension | Rescued a captive Derelict 7932 | -5/Extension | Rescued a captive Derelict 7975 | -5/Extension | Rescued a captive Derelict 8015 | -5/Extension | Rescued A7 8044 | -5/Extension | Spotted B-75 Beast 8095 | -5/Extension | Spotted B-75 Beast 8193 | -5/Extension | Rescued a captive Derelict 8197 | -5/Extension | Rescued a captive Derelict 8287 | -5/Extension | Discovered new exit (range 10) 8288 | -5/Extension | Discovered new exit (range 6) 8293 | -5/Extension | Identified exit to Factory 8318 | -5/Extension | Entered Cetus 8318 | -5/Cetus | Accompanied by 6 allies (A7) 8323 | -5/Cetus | Acquired a Cetus Manufacturing Module code from A7 8324 | -5/Cetus | Spotted Cetus Guard 8324 | -5/Cetus | Spotted Cetus Guard 8329 | -5/Cetus | Spotted Cetus Guard 8334 | -5/Cetus | Destroyed Cetus Guard 8335 | -5/Cetus | Spotted Cetus Guard 8342 | -5/Cetus | Allies destroyed Cetus Guard 8346 | -5/Cetus | Extracted ID and sensor layout for unrecognized location from A7's data core 8349 | -5/Cetus | Destroyed Cetus Guard 8352 | -5/Cetus | Allies destroyed Cetus Guard 8387 | -5/Cetus | Started Cetus Manufacturing Module 8393 | -5/Cetus | Discovered new exit (range 16) 8399 | -5/Cetus | Spotted Cetus Guard 8399 | -5/Cetus | Spotted Cetus Guard 8412 | -5/Cetus | Manufactured an Enhanced Grunt 8435 | -5/Cetus | Destroyed Cetus Guard 8436 | -5/Cetus | Destroyed Cetus Guard 8437 | -5/Cetus | Manufactured an Enhanced Grunt 8440 | -5/Cetus | Destroyed Cetus Guard 8441 | -5/Cetus | Spotted Cetus Guard 8451 | -5/Cetus | Destroyed Cetus Guard 8462 | -5/Cetus | Manufactured an Enhanced Grunt 8463 | -5/Cetus | Discovered exit to Factory (range 15) 8465 | -5/Cetus | Met Revision 17 8487 | -5/Cetus | Manufactured an Enhanced Grunt 8512 | -5/Cetus | Manufactured an Enhanced Grunt 8594 | -5/Cetus | Entered Archives 8594 | -5/Archives | Accompanied by 6 allies 8624 | -5/Archives | Discovered new exit (range 16) 8626 | -5/Archives | Unable to access archive contents 8631 | -5/Archives | Discovered new exit (range 15) 8633 | -5/Archives | Discovered exit to Factory (range 15) 8770 | -5/Archives | Build established: Commander-Sprinter 9073 | -5/Archives | Entered Hub_04(d) 9073 | -5/Hub_04(d) | Accompanied by 6 allies 9181 | -5/Hub_04(d) | Discovered exit to Factory (range 5) 9181 | -5/Hub_04(d) | Spotted B-75 Beast 9259 | -5/Hub_04(d) | Found Corrupted Prototype Device 9259 | -5/Hub_04(d) | Identified Exp. Thermal Shield 9275 | -5/Hub_04(d) | Discovered exit to Factory (range 14) 9557 | -5/Hub_04(d) | Build established: Scavenger-Sprinter 9616 | -5/Hub_04(d) | Network Hub disabled 9670 | -5/Hub_04(d) | Entered Factory 9670 | -4/Factory | Accompanied by 2 allies 9670 | -4/Factory | Evolved 2 slots: Propulsion x1, Utility x1 10118 | -4/Factory | Repaired Broken Neutron Cannon 10230 | -4/Factory | Allied Derelicts emerged from ambush trap array 10348 | -4/Factory | Found Quantum Capacitor 10381 | -4/Factory | Fabricated Imp. Gyrokinetic Inverter? 10417 | -4/Factory | Discovered new exit (range 9) 10420 | -4/Factory | First assault squad dispatched 10424 | -4/Factory | Fabricated Imp. Gyrokinetic Inverter? 10481 | -4/Factory | Fabricated Imp. Gyrokinetic Inverter (x2) 10541 | -4/Factory | Entered Research 10541 | -3/Research | Evolved 2 slots: Utility x2 10591 | -3/Research | Spotted B-86 Titan 10673 | -3/Research | Fabricated Com. HERF Cannon (x1) 10783 | -3/Research | Fabricated Imp. Gyrokinetic Inverter? 11039 | -3/Research | Build established: Scout 11289 | -3/Research | Discovered new exit (range 5) 11386 | -3/Research | Entered another Research area 11386 | -2/Research | Evolved 2 slots: Propulsion x1, Utility x1 11677 | -2/Research | Build established: Scavenger-Scout 12090 | -2/Research | Discovered new exit (range 12) 12125 | -2/Research | Identified exit to Testing 12151 | -2/Research | Found Fusion Bomb Launcher 12252 | -2/Research | Spotted B-90 Cyclops 12261 | -2/Research | Found Prototype Processor 12268 | -2/Research | Identified Spectral Analyzer 12300 | -2/Research | Found Prototype Processor 12314 | -2/Research | Identified Exp. Terrain Scan Processor 12368 | -2/Research | Found Quantum Capacitor 12386 | -2/Research | Lost 6 parts (2n4u) 12458 | -2/Research | Discovered new exit (range 13) 12494 | -2/Research | Entered Access 12494 | -1/Access | Evolved 2 slots: Propulsion x1, Utility x1 12518 | -1/Access | Lost 6 parts (1p3n1u1w) 12549 | -1/Access | System corruption reached 10% 12597 | -1/Access | Lost 6 parts (1p1n3u1w) 12654 | -1/Access | Core integrity fell below 50% 12655 | -1/Access | System corruption reached 30% 12677 | -1/Access | Core integrity fell below 20% 12691 | -1/Access | Destroyed by C-57 Dissector with Dual-blade Saw Last Messages --------------- 12663_ Enh. Nova Cannon destroyed. 12664_ Penetrated by Slug. 12664_ Knocked back. 12667_ Acquired Rnf. Quantum Reactor. 12669_ Slammed into C-57 Dissector. 12670_ Lgt. Quantum Reactor severed. 12672_ Penetrated by Slug. 12672_ Rnf. Quantum Reactor destroyed. 12672_ Exp. Terrain Scan Processor destroyed. 12672_ Critical hit (Blast). 12673_ System corrupted: Matter fused (-8). 12673_ Adv. Targeting Computer severed. 12676_ Knocked back. 12677_ Slammed into C-57 Dissector. 12683_ Knocked back. 12684_ Slammed into C-57 Dissector. 12687_ Knocked back. 12688_ Slammed into C-57 Dissector. 12690_ System corrupted: Substantial component data lost. 12690_ Slammed into C-57 Dissector. Map ----- +----------------------------------------------------+ | # # #??????? | | # #?? #??????? | | ##### #???? % #??????? | | #?????? """ #??????? | | #????????"" #??????? | | ##########?###??????? | | #?########## | | ######## #?# # | | #??????# #?# # | | #????### ### # | | ########+##+##???# # # | | ?# #### # # | | ?# + # | | ?# " #### # # | | ?# """ ???# # # | | ?# """ ????# =% # %% # | | ?# " ????# *%=;##/###### | | ?# ?????# /%=%=%% #! # | | ?# ?????## = ]*!==+%[ # | | ?# """ """???????# =%=%%#% # | | ?# """S"""??????# ####%!!=# # | | ?# ???????#????#%%*]# # | | ?# ????????????#%=%=# # | | ?########?????????????##%[%# # | | ???????????????????????#=% # # | | ???????????????????????#%@ # # | | ???????????????????????# %c###### | | ?????????????????????? / #????? | | ???????????????????? # ;#???? | | ?????????????????? # ##???? | | ???????????????? ?# #????? | | ?????????????? ?# #????? | | ?????????????########??# H #????? | | ???????????????????????# #????? | | ???????????????????????# #????? | | ??????????????????????? ????? | | ??????????????????????? ????? | | ??????????????????????? ????? | | ??????????????????????? #???? | | ??????????????????????? #???? | | ???????????????????????######???? | | ????????????????????????????????? | | ????????????????????????????????? | | ????????????????????????????????? | | ????????????????????????????????? | | ????????????????????????????????? | | ????????????????????????????????? | | ????????????????????????????????? | | ????????????????????????????????? | | ????????????????????????????????? | +----------------------------------------------------+ Best States ------------- Heat Dissipation 90 Energy Generation 45 Energy Capacity 1850 Matter Stores 300 Matter Capacity 300 Sight Range 24 Terrain Scan Range 16 Terrain Scan Density 1010 Additional Mass Support 9 Corruption Block 15 Armor Coverage 450 Resistance: TH 30 Core Shielding 20 Propulsion Shielding 90 Weapon Cycling 20 Phase Shifting 15 Evasion (%) 70 Targeting Accuracy 16 Offensive Hacking 10 Item Schematics ----------------- Hover Unit | -9/Materials | Scanalyzed Hvy. Battle Rifle | -9/Materials | Scanalyzed Core Shielding | -9/Materials | Scanalyzed Lgt. Armor Plating | -9/Materials | Scanalyzed Airjet | -9/Materials | Scanalyzed Hpw. Shotgun | -9/Materials | Scanalyzed Adv. Visual Processing Unit | -8/Materials | Hacked Enh. Optical Array | -8/Storage | Hacked Imp. Gravmag System | -8/Storage | Hacked Gui. EMP Blaster | -7/Factory | Scanalyzed Reaction Control System | -7/Factory | Scanalyzed Imp. Coolant Injector | -7/Factory | Hacked Imp. Medium Armor Plating | -7/Factory | Scanalyzed Cld. Particle Cannon | -7/Factory | Scanalyzed Antigrav Array | -5/Factory | Hacked Imp. Gyrokinetic Inverter | -5/Extension | Hacked Com. HERF Cannon | -3/Research | Scanalyzed Robot Schematics ------------------ None Fabricated ------------ Imp. Gravmag System | x2 | -7/Factory Enh. Optical Array | x1 | -6/Factory Imp. Gyrokinetic Inverter | x2 | -4/Factory Imp. Gyrokinetic Inverter | x2 | -4/Factory Imp. Gyrokinetic Inverter | x2 | -4/Factory Com. HERF Cannon | x1 | -3/Research | Preloaded Imp. Gyrokinetic Inverter | x2 | -3/Research Alien Tech Used ----------------- None Achievements -------------- Origins Project G-00 Revising The Future Challenges ------------ None Game ------ Seed SingularityStorageMapper Manual? 0 Play Time 05:30:20 Cumulative 71.1 hours Start 2023.11.24 @ 22:46:02 End 2023.11.25 @ 12:16:32 Sessions 5 Manual Loads 0 Difficulty Rogue Special Mode None Game No. 59 Rogue 56 Adventurer 3 Explorer 0 Win Type - Total 0 Types 0/0/0/0/0/0/0/0/0 Lore% 54 Gallery% 53 Achievement% 47 Wizard Run 0 Options --------- ASCII 0 Keyboard 0 Movement Mouse Keybinds 0 Fullscreen 2 Font 18/SmallcapsGlow Map View 76x50 Tactical HUD 1 Map Filters NONE Filters NONE Steam 1 RUN: 9844f093-748a-41ee-9ded-96b132c80c8c